fUSD/lending_fUSD_20241224
["ID","MTS","AMOUNT","RATE_DAILY","PERIOD"]
[346498772,1735008985249,500.0,0.00014693,2]
[346498773,1735008985528,500.0,0.00014967,2]
[346498774,1735008986654,500.0,0.00013698,2]
[346498775,1735008986885,500.0,0.00013972,2]
[346498776,1735008987098,989.35,0.00014419,2]
[346498777,1735008987168,500.0,0.00014246,2]
[346498778,1735008987404,989.35,0.00014693,2]
[346498779,1735008987462,500.0,0.0001452,2]
[346498780,1735008987623,989.35,0.00014967,2]
[346498781,1735008987789,500.0,0.00014794,2]
[346498782,1735008988357,500.0,0.00013698,2]
[346498783,1735008997058,500.0,0.00013698,2]
[346498784,1735008997238,500.0,0.00013698,2]
[346498785,1735008997319,500.0,0.00013972,2]
[346498786,1735008997390,694.9,0.00014419,2]
[346498787,1735008997530,500.0,0.00013972,2]
[346498788,1735008997585,500.0,0.00014246,2]
[346498789,1735008997640,694.9,0.00014693,2]
[346498790,1735008997796,500.0,0.00014246,2]
[346498791,1735008997856,500.0,0.0001452,2]
[346498792,1735008997920,694.9,0.00014967,2]
[346498793,1735008998044,500.0,0.0001452,2]
[346498794,1735008998102,500.0,0.00014794,2]
[346498795,1735008998315,500.0,0.00014794,2]
[346498796,1735008998823,1404.0,0.00013698,2]
[346498797,1735008999094,500.0,0.00013698,2]
[346498798,1735008999148,1404.0,0.00013972,2]
[346498799,1735008999348,500.0,0.00013972,2]
[346498800,1735008999438,1404.0,0.00014246,2]
[346498801,1735008999626,500.0,0.00014246,2]
[346498802,1735008999706,1404.0,0.0001452,2]
[346498803,1735008999890,500.0,0.0001452,2]
[346498804,1735008999966,1404.0,0.00014794,2]
[346498805,1735009000151,500.0,0.00014794,2]
[346498806,1735009002144,500.0,0.00013698,2]
[346498807,1735009002415,500.0,0.00013972,2]
[346498808,1735009002685,500.0,0.00014246,2]
[346498809,1735009002953,500.0,0.0001452,2]
[346498810,1735009003231,500.0,0.00014794,2]
[346498811,1735009005580,500.0,0.00013698,2]
[346498812,1735009005873,500.0,0.00013972,2]
[346498813,1735009006142,500.0,0.00014246,2]
[346498814,1735009006336,1003.05,0.00014419,2]
[346498815,1735009006396,500.0,0.0001452,2]
[346498816,1735009006589,1003.05,0.00014693,2]
[346498817,1735009006644,779.89,0.00013698,2]
[346498818,1735009006706,500.0,0.00014794,2]
[346498819,1735009006836,779.89,0.00013972,2]
[346498820,1735009006895,1003.05,0.00014967,2]
[346498821,1735009007044,1145.09,0.00013698,2]
[346498822,1735009007118,779.89,0.00014246,2]
[346498823,1735009007309,1145.09,0.00013972,2]
[346498824,1735009007380,779.89,0.0001452,2]
[346498825,1735009007606,1145.09,0.00014246,2]
[346498826,1735009007677,779.89,0.00014794,2]
[346498827,1735009007931,1145.09,0.0001452,2]
[346498828,1735009008202,1145.09,0.00014794,2]
[346498829,1735009008304,500.0,0.00013698,2]
[346498830,1735009009202,500.0,0.00013972,2]
[346498831,1735009009766,500.0,0.00014246,2]
[346498832,1735009009868,480.467961,0.0001452,2]
[346498833,1735009010566,500.0,0.00013698,2]
[346498834,1735009011037,500.0,0.00013972,2]
[346498835,1735009011137,500.0,0.00014246,2]
[346498836,1735009011211,500.0,0.00013698,2]
[346498837,1735009011470,500.0,0.00013972,2]
[346498838,1735009011539,500.0,0.0001452,2]
[346498839,1735009011732,500.0,0.00014246,2]
[346498840,1735009011841,500.0,0.00014794,2]
[346498841,1735009012021,500.0,0.0001452,2]
[346498842,1735009012293,500.0,0.00014794,2]
[346498843,1735009013425,544.11,0.00013698,2]
[346498844,1735009013712,544.11,0.00013972,2]
[346498845,1735009013974,544.11,0.00014246,2]
[346498846,1735009014241,544.11,0.0001452,2]
[346498847,1735009014480,544.11,0.00014794,2]
[346498848,1735009015102,2112.88,0.00014419,2]
[346498849,1735009015362,2112.88,0.00014693,2]
[346498850,1735009015635,2112.88,0.00014967,2]
[346498851,1735009016311,500.0,0.00013698,2]
[346498852,1735009023949,800.0,0.00014959,2]
[346498853,1735009031683,500.0,0.00013698,2]
[346498854,1735009031872,500.0,0.00013972,2]
[346498855,1735009031998,500.0,0.00014246,2]
[346498856,1735009032269,500.0,0.0001452,2]
[346498857,1735009032574,500.0,0.00014794,2]
[346498858,1735009034204,635.94,0.00013698,2]
[346498859,1735009034293,635.94,0.00013972,2]
[346498860,1735009034555,635.94,0.00014246,2]
[346498861,1735009034818,635.94,0.0001452,2]
[346498862,1735009035103,635.94,0.00014794,2]
[346498863,1735009038268,997.38,0.00014419,2]
[346498864,1735009038573,997.38,0.00014693,2]
[346498865,1735009038847,997.38,0.00014967,2]
[346498866,1735009040089,500.0,0.00013698,2]
[346498867,1735009040365,500.0,0.00013972,2]
[346498868,1735009040965,608.2228454,0.00014246,2]
[346498869,1735009043030,863.46,0.00013698,2]
[346498870,1735009043186,500.0,0.00013698,2]
[346498871,1735009043283,863.46,0.00013972,2]
[346498872,1735009043507,500.0,0.00013972,2]
[346498873,1735009043572,863.46,0.00014246,2]
[346498874,1735009044021,500.0,0.00014246,2]
[346498875,1735009044088,863.46,0.0001452,2]
[346498876,1735009044181,500.0,0.0001452,2]
[346498877,1735009044257,863.46,0.00014794,2]
[346498878,1735009044325,500.0,0.00013698,2]
[346498879,1735009044409,500.0,0.00014794,2]
[346498880,1735009047785,500.0,0.00013698,2]
[346498881,1735009048057,500.0,0.00013698,2]
[346498882,1735009048417,500.0,0.00013972,2]
[346498883,1735009048695,500.0,0.00014246,2]
[346498884,1735009048838,500.0,0.00013698,2]
[346498885,1735009048935,500.0,0.0001452,2]
[346498886,1735009049192,500.0,0.00014794,2]
[346498887,1735009053486,500.0,0.00013698,2]
[346498888,1735009053751,500.0,0.00013972,2]
[346498889,1735009054010,500.0,0.00014246,2]
[346498890,1735009054263,500.0,0.0001452,2]
[346498891,1735009054494,500.0,0.00013698,2]
[346498892,1735009054615,500.0,0.00014794,2]
[346498893,1735009054779,500.0,0.00013972,2]
[346498894,1735009055047,500.0,0.00014246,2]
[346498895,1735009055293,500.0,0.0001452,2]
[346498896,1735009055417,4256.38,0.00014419,2]
[346498897,1735009055572,500.0,0.00014794,2]
[346498898,1735009055711,4256.38,0.00014693,2]
[346498899,1735009055963,1500.0,0.00014316,2]
[346498900,1735009056026,4256.38,0.00014967,2]
[346498901,1735009056152,1500.0,0.00012826,2]
[346498902,1735009056819,500.0,0.00013698,2]
[346498903,1735009057032,500.0,0.00013972,2]
[346498904,1735009057269,1002.36,0.00013698,2]
[346498905,1735009057328,500.0,0.00014246,2]
[346498906,1735009057533,500.0,0.0001452,2]
[346498907,1735009057590,1002.36,0.00013972,2]
[346498908,1735009057788,500.0,0.00014794,2]
[346498909,1735009057851,1002.36,0.00014246,2]
[346498910,1735009058056,1002.36,0.0001452,2]
[346498911,1735009058329,1002.36,0.00014794,2]
[346498912,1735009062221,500.0,0.00013698,2]
[346498913,1735009062784,500.0,0.00013972,2]
[346498914,1735009063140,500.0,0.00014246,2]
[346498915,1735009063408,500.0,0.0001452,2]
[346498916,1735009064095,500.0,0.00014794,2]
[346498917,1735009065907,6958.26,0.00013698,2]
[346498918,1735009066195,6958.26,0.00013972,2]
[346498919,1735009066801,6958.26,0.00014246,2]
[346498920,1735009067074,6958.26,0.0001452,2]
[346498921,1735009067388,6958.26,0.00014794,2]
[346498922,1735009067871,1204.53,0.00014419,2]
[346498923,1735009068134,1204.53,0.00014693,2]
[346498924,1735009068469,1204.53,0.00014967,2]
[346498925,1735009070410,1670.23226248,0.00014968,2]
[346498926,1735009070609,500.0,0.00014419,2]
[346498927,1735009070861,500.0,0.00014693,2]
[346498928,1735009071117,500.0,0.00014967,2]
[346498929,1735009071768,500.0,0.00013698,2]
[346498930,1735009072022,500.0,0.00013972,2]
[346498931,1735009072643,500.0,0.00014246,2]
[346498932,1735009073151,500.0,0.0001452,2]
[346498933,1735009073370,500.0,0.00014794,2]
[346498934,1735009074709,4168.99956074,0.00014967,2]
[346498935,1735009077630,500.0,0.00013698,2]
[346498936,1735009078224,500.0,0.00013972,2]
[346498937,1735009078493,500.0,0.00014246,2]
[346498938,1735009078736,500.0,0.0001452,2]
[346498939,1735009078981,500.0,0.00014794,2]
[346498940,1735009080105,500.0,0.00013698,2]
[346498941,1735009080427,500.0,0.00013698,2]
[346498942,1735009080680,500.0,0.00013972,2]
[346498943,1735009081141,500.0,0.00013698,2]
[346498944,1735009081196,500.0,0.00014246,2]
[346498945,1735009081412,500.0,0.00013972,2]
[346498946,1735009081469,500.0,0.0001452,2]
[346498947,1735009081671,500.0,0.00014246,2]
[346498948,1735009081734,500.0,0.00014794,2]
[346498949,1735009081946,500.0,0.0001452,2]
[346498950,1735009082015,500.0,0.00013698,2]
[346498951,1735009082200,500.0,0.00014794,2]
[346498952,1735009082260,500.0,0.00013972,2]
[346498953,1735009082499,500.0,0.00014246,2]
[346498954,1735009082780,500.0,0.0001452,2]
[346498955,1735009083551,500.0,0.00014794,2]
[346498956,1735009083796,533.4,0.00014419,2]
[346498957,1735009084093,533.4,0.00014693,2]
[346498958,1735009084355,533.4,0.00014967,2]
[346498959,1735009084494,1204.11,0.00013698,2]
[346498960,1735009084717,1204.11,0.00013972,2]
[346498961,1735009085011,1204.11,0.00014246,2]
[346498962,1735009085303,1204.11,0.0001452,2]
[346498963,1735009085559,1204.11,0.00014794,2]
[346498964,1735009087594,500.0,0.00013698,2]
[346498965,1735009087880,500.0,0.00013972,2]
[346498966,1735009088137,500.0,0.00014246,2]
[346498967,1735009088410,500.0,0.0001452,2]
[346498968,1735009088663,500.0,0.00014794,2]
[346498969,1735009089444,500.0,0.00013698,2]
[346498970,1735009089692,500.0,0.00013972,2]
[346498971,1735009089943,500.0,0.00014246,2]
[346498972,1735009090211,500.0,0.0001452,2]
[346498973,1735009090480,500.0,0.00014794,2]
[346498974,1735009093870,500.0,0.00014419,2]
[346498975,1735009094030,500.0,0.00014693,2]
[346498976,1735009094117,500.0,0.00014967,2]
[346498977,1735009095221,500.0,0.00013698,2]
[346498978,1735009095473,500.0,0.00013972,2]
[346498979,1735009095711,500.0,0.00014246,2]
[346498980,1735009095981,500.0,0.0001452,2]
[346498981,1735009096243,500.0,0.00014794,2]
[346498982,1735009097303,689.31,0.00013698,2]
[346498983,1735009097545,689.31,0.00013972,2]
[346498984,1735009097816,689.31,0.00014246,2]
[346498985,1735009098073,689.31,0.0001452,2]
[346498986,1735009098345,689.31,0.00014794,2]
[346498987,1735009101462,500.0,0.00013698,2]
[346498988,1735009101598,500.0,0.00013972,2]
[346498989,1735009101686,500.0,0.00014246,2]
[346498990,1735009101967,500.0,0.0001452,2]
[346498991,1735009102138,500.0,0.00013698,2]
[346498992,1735009102214,500.0,0.00014794,2]
[346498993,1735009102360,500.0,0.00013972,2]
[346498994,1735009102630,500.0,0.00014246,2]
[346498995,1735009102899,500.0,0.0001452,2]
[346498996,1735009103082,500.0,0.00014419,2]
[346498997,1735009103163,500.0,0.00014794,2]
[346498998,1735009103356,500.0,0.00014693,2]
[346498999,1735009103677,500.0,0.00014967,2]
[346499000,1735009105632,232.38,0.0001446,2]
[346499001,1735009107401,177.2,0.00010137,2]
[346499002,1735009107681,500.0,0.00013698,2]
[346499003,1735009107954,500.0,0.00013972,2]
[346499004,1735009108217,500.0,0.00014246,2]
[346499005,1735009108504,500.0,0.0001452,2]
[346499006,1735009108822,500.0,0.00014794,2]
[346499007,1735009109006,1135.7,0.00014419,2]
[346499008,1735009109239,1135.7,0.00014693,2]
[346499009,1735009109486,1135.7,0.00014967,2]
[346499010,1735009113465,500.0,0.00013698,2]
[346499011,1735009113726,500.0,0.00013972,2]
[346499012,1735009113917,500.0,0.00013698,2]
[346499013,1735009113994,500.0,0.00014246,2]
[346499014,1735009114169,500.0,0.00013972,2]
[346499015,1735009114634,500.0,0.0001452,2]
[346499016,1735009114743,500.0,0.00014246,2]
[346499017,1735009114803,500.0,0.00014794,2]
[346499018,1735009114890,500.0,0.0001452,2]
[346499019,1735009114995,500.0,0.00014794,2]
[346499020,1735009117196,1732.32,0.00014419,2]
[346499021,1735009117459,1732.32,0.00014693,2]
[346499022,1735009117741,1732.32,0.00014967,2]
[346499023,1735009119134,1591.18,0.00013698,2]
[346499024,1735009119190,500.0,0.00013698,2]
[346499025,1735009119423,1591.18,0.00013972,2]
[346499026,1735009119482,500.0,0.00013972,2]
[346499027,1735009119673,500.0,0.00014246,2]
[346499028,1735009119730,1591.18,0.00014246,2]
[346499029,1735009119908,500.0,0.0001452,2]
[346499030,1735009119980,1591.18,0.0001452,2]
[346499031,1735009120155,2763.87,0.00014419,2]
[346499032,1735009120216,500.0,0.00014794,2]
[346499033,1735009120284,1591.18,0.00014794,2]
[346499034,1735009120411,2763.87,0.00014693,2]
[346499035,1735009120684,2763.87,0.00014967,2]
[346499036,1735009126385,500.0,0.00013698,2]
[346499037,1735009126485,500.0,0.00013972,2]
[346499038,1735009126770,500.0,0.00014246,2]
[346499039,1735009127008,500.0,0.0001452,2]
[346499040,1735009127276,500.0,0.00014794,2]
[346499041,1735009127852,500.0,0.00013698,2]
[346499042,1735009128135,500.0,0.00013972,2]
[346499043,1735009128394,500.0,0.00014246,2]
[346499044,1735009128641,500.0,0.0001452,2]
[346499045,1735009128899,500.0,0.00014794,2]
[346499046,1735009132160,826.16,0.00013698,2]
[346499047,1735009132407,826.16,0.00013972,2]
[346499048,1735009132673,826.16,0.00014246,2]
[346499049,1735009132920,826.16,0.0001452,2]
[346499050,1735009133185,826.16,0.00014794,2]
[346499051,1735009133550,500.0,0.00013698,2]
[346499052,1735009133788,500.0,0.00013972,2]
[346499053,1735009134028,500.0,0.00014246,2]
[346499054,1735009134275,500.0,0.0001452,2]
[346499055,1735009134582,500.0,0.00014794,2]
[346499056,1735009137555,500.0,0.00013698,2]
[346499057,1735009137802,500.0,0.00013972,2]
[346499058,1735009138079,500.0,0.00014246,2]
[346499059,1735009138337,500.0,0.0001452,2]
[346499060,1735009138673,500.0,0.00014794,2]
[346499061,1735009138807,500.0,0.00014419,2]
[346499062,1735009139096,500.0,0.00014693,2]
[346499063,1735009139377,500.0,0.00014967,2]
[346499064,1735009140434,548.09,0.00013698,2]
[346499065,1735009140685,548.09,0.00013972,2]
[346499066,1735009140964,548.09,0.00014246,2]
[346499067,1735009141252,548.09,0.0001452,2]
[346499068,1735009141509,548.09,0.00014794,2]
[346499069,1735009142408,1000.0,0.00013698,2]
[346499070,1735009142674,1000.0,0.00013972,2]
[346499071,1735009142932,1000.0,0.00014246,2]
[346499072,1735009143192,1000.0,0.0001452,2]
[346499073,1735009143474,1000.0,0.00014794,2]
[346499074,1735009147188,500.0,0.00014419,2]
[346499075,1735009147460,500.0,0.00014693,2]
[346499076,1735009147731,500.0,0.00014967,2]
[346499077,1735009150186,667.54,0.00013698,2]
[346499078,1735009150466,667.54,0.00013972,2]
[346499079,1735009150734,667.54,0.00014246,2]
[346499080,1735009151000,667.54,0.0001452,2]
[346499081,1735009151113,1300.14,0.00014419,2]
[346499082,1735009151258,667.54,0.00014794,2]
[346499083,1735009151407,1300.14,0.00014693,2]
[346499084,1735009151675,1300.14,0.00014967,2]
[346499085,1735009157141,500.0,0.00013698,2]
[346499086,1735009157425,500.0,0.00013972,2]
[346499087,1735009158595,500.0,0.00013698,2]
[346499088,1735009158895,500.0,0.00013972,2]
[346499089,1735009159163,500.0,0.00014246,2]
[346499090,1735009159483,500.0,0.0001452,2]
[346499091,1735009160355,500.0,0.00014794,2]
[346499092,1735009160648,500.0,0.00014246,2]
[346499093,1735009160913,500.0,0.0001452,2]
[346499094,1735009161303,500.0,0.00014794,2]
[346499095,1735009162976,500.0,0.00013698,2]
[346499096,1735009163254,500.0,0.00013972,2]
[346499097,1735009163837,500.0,0.00014246,2]
[346499098,1735009163902,500.0,0.0001452,2]
[346499099,1735009164009,500.0,0.00014794,2]
[346499100,1735009164259,500.0,0.00014419,2]
[346499101,1735009164623,500.0,0.00014693,2]
[346499102,1735009164884,500.0,0.00014967,2]
[346499103,1735009165654,807.6,0.00013698,2]
[346499104,1735009165940,807.6,0.00013972,2]
[346499105,1735009166528,807.6,0.00014246,2]
[346499106,1735009166589,807.6,0.0001452,2]
[346499107,1735009166728,807.6,0.00014794,2]
[346499108,1735009169222,500.0,0.00013698,2]
[346499109,1735009169478,500.0,0.00013972,2]
[346499110,1735009169744,500.0,0.00014246,2]
[346499111,1735009170007,1714.9,0.00013698,2]
[346499112,1735009170063,500.0,0.0001452,2]
[346499113,1735009170250,500.0,0.00014794,2]
[346499114,1735009170305,1714.9,0.00013972,2]
[346499115,1735009170515,1714.9,0.00014246,2]
[346499116,1735009170773,1714.9,0.0001452,2]
[346499117,1735009171072,1714.9,0.00014794,2]
[346499118,1735009171490,500.0,0.00014419,2]
[346499119,1735009171750,500.0,0.00014693,2]
[346499120,1735009172076,500.0,0.00014967,2]
[346499121,1735009174295,626.22,0.00013698,2]
[346499122,1735009174740,626.22,0.00013972,2]
[346499123,1735009175006,626.22,0.00014246,2]
[346499124,1735009175306,626.22,0.0001452,2]
[346499125,1735009175585,626.22,0.00014794,2]
[346499126,1735009177574,500.0,0.00013698,2]
[346499127,1735009177703,500.0,0.00014419,2]
[346499128,1735009177834,500.0,0.00013972,2]
[346499129,1735009177956,500.0,0.00014693,2]
[346499130,1735009178084,500.0,0.00014246,2]
[346499131,1735009178227,500.0,0.00014967,2]
[346499132,1735009178330,500.0,0.0001452,2]
[346499133,1735009178590,500.0,0.00014794,2]
[346499134,1735009188915,591.27,0.00014419,2]
[346499135,1735009189196,591.27,0.00014693,2]
[346499136,1735009189464,591.27,0.00014967,2]
[346499137,1735009190125,500.0,0.00013698,2]
[346499138,1735009190368,500.0,0.00013972,2]
[346499139,1735009190420,1621.62,0.00014419,2]
[346499140,1735009190604,476.52415601,0.00014246,2]
[346499141,1735009190690,1621.62,0.00014693,2]
[346499142,1735009190922,1621.62,0.00014967,2]
[346499143,1735009192127,1296.2,0.00013698,2]
[346499144,1735009192387,1296.2,0.00013972,2]
[346499145,1735009192755,1296.2,0.00014246,2]
[346499146,1735009193063,500.0,0.00013698,2]
[346499147,1735009193221,1296.2,0.0001452,2]
[346499148,1735009193310,500.0,0.00013972,2]
[346499149,1735009193589,1296.2,0.00014794,2]
[346499150,1735009193649,500.0,0.00014246,2]
[346499151,1735009193868,500.0,0.0001452,2]
[346499152,1735009194171,500.0,0.00014794,2]
[346499153,1735009196634,500.0,0.00013698,2]
[346499154,1735009196886,500.0,0.00013972,2]
[346499155,1735009197129,500.0,0.00014246,2]
[346499156,1735009197387,500.0,0.0001452,2]
[346499157,1735009198186,740.7,0.00014419,2]
[346499158,1735009198250,500.0,0.00014794,2]
[346499159,1735009198315,740.7,0.00014693,2]
[346499160,1735009198392,740.7,0.00014967,2]
[346499161,1735009199628,500.0,0.00013698,2]
[346499162,1735009199879,500.0,0.00013972,2]
[346499163,1735009200151,500.0,0.00014246,2]
[346499164,1735009200398,500.0,0.0001452,2]
[346499165,1735009200646,500.0,0.00014794,2]
[346499166,1735009203713,500.0,0.00013698,2]
[346499167,1735009204018,500.0,0.00013972,2]
[346499168,1735009204304,500.0,0.00014246,2]
[346499169,1735009204556,500.0,0.0001452,2]
[346499170,1735009204828,500.0,0.00014794,2]
[346499171,1735009206907,773.25,0.00014419,2]
[346499172,1735009207197,773.25,0.00014693,2]
[346499173,1735009207528,773.25,0.00014967,2]
[346499174,1735009208004,500.0,0.00013698,2]
[346499175,1735009208596,500.0,0.00013972,2]
[346499176,1735009208683,500.0,0.00014246,2]
[346499177,1735009208880,500.0,0.0001452,2]
[346499178,1735009209142,500.0,0.00014794,2]
[346499179,1735009214227,2011.0,0.00014078,2]
[346499180,1735009214819,622.55822172,0.00013698,2]
[346499181,1735009215089,812.29,0.00013698,2]
[346499182,1735009215346,812.29,0.00013972,2]
[346499183,1735009215629,812.29,0.00014246,2]
[346499184,1735009215995,520.04,0.00013698,2]
[346499185,1735009216060,812.29,0.0001452,2]
[346499186,1735009216242,520.04,0.00013972,2]
[346499187,1735009216305,812.29,0.00014794,2]
[346499188,1735009216505,520.04,0.00014246,2]
[346499189,1735009216798,520.04,0.0001452,2]
[346499190,1735009217052,520.04,0.00014794,2]
[346499191,1735009218564,500.0,0.00013698,2]
[346499192,1735009218956,500.0,0.00013972,2]
[346499193,1735009219050,1265.0,0.00014078,2]
[346499194,1735009219110,500.0,0.00014246,2]
[346499195,1735009219367,500.0,0.0001452,2]
[346499196,1735009219640,500.0,0.00014794,2]
[346499197,1735009222960,500.0,0.00014419,2]
[346499198,1735009223256,500.0,0.00014693,2]
[346499199,1735009223511,500.0,0.00014967,2]
[346499200,1735009225531,3888.0,0.00014078,2]
[346499201,1735009227339,500.0,0.00013698,2]
[346499202,1735009227608,500.0,0.00013972,2]
[346499203,1735009227869,500.0,0.00014246,2]
[346499204,1735009228039,500.0,0.00013698,2]
[346499205,1735009228184,500.0,0.0001452,2]
[346499206,1735009228297,500.0,0.00013972,2]
[346499207,1735009228597,500.0,0.00014246,2]
[346499208,1735009228786,500.0,0.00014794,2]
[346499209,1735009228860,500.0,0.0001452,2]
[346499210,1735009229364,500.0,0.00014794,2]
[346499211,1735009230855,500.0,0.00013698,2]
[346499212,1735009230936,500.0,0.00013972,2]
[346499213,1735009231087,500.0,0.00014246,2]
[346499214,1735009231325,150.0,0.00014078,2]
[346499215,1735009231389,500.0,0.0001452,2]
[346499216,1735009231599,500.0,0.00014794,2]
[346499217,1735009232427,977.95,0.00014419,2]
[346499218,1735009232708,977.95,0.00014693,2]
[346499219,1735009232959,977.95,0.00014967,2]
[346499220,1735009234295,500.0,0.00013698,2]
[346499221,1735009234605,500.0,0.00013972,2]
[346499222,1735009234839,500.0,0.00014246,2]
[346499223,1735009235122,500.0,0.0001452,2]
[346499224,1735009235382,500.0,0.00014794,2]
[346499225,1735009236511,635.0,0.00014078,2]
[346499226,1735009237315,500.0,0.00014419,2]
[346499227,1735009237594,500.0,0.00014693,2]
[346499228,1735009237910,500.0,0.00014967,2]
[346499229,1735009239673,500.0,0.00013698,2]
[346499230,1735009239853,500.0,0.00013972,2]
[346499231,1735009240004,500.0,0.00014246,2]
[346499232,1735009240174,500.0,0.0001452,2]
[346499233,1735009240489,500.0,0.00014794,2]
[346499234,1735009241415,1080.76,0.00014419,2]
[346499235,1735009241814,1080.76,0.00014693,2]
[346499236,1735009242087,1080.76,0.00014967,2]
[346499237,1735009245968,500.0,0.00013698,2]
[346499238,1735009246601,500.0,0.00013698,2]
[346499239,1735009246720,500.0,0.00013972,2]
[346499240,1735009246926,500.0,0.00013972,2]
[346499241,1735009247118,500.0,0.00014246,2]
[346499242,1735009247300,500.0,0.00014246,2]
[346499243,1735009247361,500.0,0.0001452,2]
[346499244,1735009247556,500.0,0.0001452,2]
[346499245,1735009247614,500.0,0.00014794,2]
[346499246,1735009247836,500.0,0.00014794,2]
[346499247,1735009248067,500.0,0.00013698,2]
[346499248,1735009248321,500.0,0.00013972,2]
[346499249,1735009248645,565.0,0.00014078,2]
[346499250,1735009248712,500.0,0.00014246,2]
[346499251,1735009248821,500.0,0.0001452,2]
[346499252,1735009249077,500.0,0.00014794,2]
[346499253,1735009253007,1303.68,0.00014419,2]
[346499254,1735009253291,1303.68,0.00014693,2]
[346499255,1735009253559,1303.68,0.00014967,2]
[346499256,1735009258280,633.0,0.00014078,2]
[346499257,1735009261130,500.0,0.00013698,2]
[346499258,1735009261361,500.0,0.00013972,2]
[346499259,1735009261635,500.0,0.00014246,2]
[346499260,1735009261823,1336.39,0.00014419,2]
[346499261,1735009261920,500.0,0.0001452,2]
[346499262,1735009262170,1336.39,0.00014693,2]
[346499263,1735009262276,500.0,0.00014794,2]
[346499264,1735009262434,1336.39,0.00014967,2]
[346499265,1735009265689,150.0,0.00014078,2]
[346499266,1735009268653,293.0,0.00014886,2]
[346499267,1735009270191,8036.38,0.00014419,2]
[346499268,1735009270730,8036.38,0.00014693,2]
[346499269,1735009270808,8036.38,0.00014967,2]
[346499270,1735009271999,617.42,0.00014419,2]
[346499271,1735009272299,617.42,0.00014693,2]